bitfinex/quotes_ETHUSD_20251012
["timestamp","ask_amount","ask_price","bid_price","bid_amount"]
[1760304196261,0.4446,4145.2,4144.6,2.41277704]
[1760304196464,0.4446,4145.2,4144.7,2.41271732]
[1760304196803,0.4446,4145.1,4144.7,2.41271732]
[1760304196961,2.3646,4145.0,4144.4,0.002]
[1760304197165,2.41266273,4144.8,4144.4,0.002]
[1760304197408,2.4127409,4144.7,4144.4,0.002]
[1760304197562,2.8573409,4144.7,4144.4,0.002]
[1760304197760,0.4446,4144.6,4142.7,2.41386925]
[1760304198076,2.41306918,4144.1,4142.7,2.41388327]
[1760304198273,2.41338604,4143.6,4142.6,2.41391509]
[1760304198583,4.33347931,4143.4,4142.5,0.6336]
[1760304198795,4.33347931,4143.4,4142.3,2.41411776]
[1760304198970,1.92,4143.4,4141.2,1.92]
[1760304199177,2.413607,4143.2,4142.3,2.414104]
[1760304199373,0.4446,4144.2,4142.2,0.6336]
[1760304199696,0.4446,4144.2,4143.7,2.41325166]
[1760304199990,0.4446,4144.1,4143.7,2.41325166]
[1760304200160,2.41279484,4144.6,4143.7,2.41325166]
[1760304200355,0.4446,4144.5,4143.7,2.41325166]
[1760304200558,0.4446,4144.5,4142.5,2.4140012]
[1760304200559,2.63586622,4143.8,4141.9,0.6336]
[1760304200863,0.4446,4143.7,4141.7,1.92]
[1760304201067,2.85791327,4143.7,4142.8,2.4137988]
[1760304201401,2.41371115,4143.0,4140.7,0.0809]
[1760304201704,2.001354,4143.5,4140.7,0.0809]
[1760304201890,2.4138177,4142.9,4141.9,0.6336]
[1760304202188,1.92,4143.5,4142.3,0.12]
[1760304202189,4.33389035,4142.7,4142.3,0.12]
[1760304202388,1.92,4142.9,4142.3,0.12]
[1760304202593,0.72604505,4145.8,4144.9,2.41259753]
[1760304202792,5.35732,4145.4,4142.8,0.0809]
[1760304202967,2.41248703,4145.1,4142.3,0.6336]
[1760304203292,2.41280071,4144.6,4143.5,0.6336]
[1760304203498,0.4446,4144.5,4143.7,2.41328392]
[1760304203793,0.2226,4143.8,4141.8,2.41440919]
[1760304203971,0.4446,4143.9,4143.7,2.41330212]
[1760304204996,0.4446,4143.9,4143.6,2.41334787]
[1760304205166,0.4446,4143.9,4143.7,2.41330137]
[1760304205362,1.92,4146.0,4142.9,2.41375694]
[1760304205567,2.3646,4144.7,4144.1,2.41306492]
[1760304206079,2.3646,4144.7,4142.6,0.6336]
[1760304206080,0.4446,4144.7,4142.6,0.6336]
[1760304206280,0.4446,4144.7,4144.1,2.41302259]
[1760304206489,2.41180933,4146.3,4143.1,2.41361581]
[1760304206697,0.6672,4145.9,4143.5,2.4134186]
[1760304206861,0.6672,4145.9,4143.7,1.92]
[1760304207068,0.4446,4145.9,4145.7,2.41212897]
[1760304207380,0.4446,4146.5,4144.4,0.6336]
[1760304207581,0.001,4145.8,4145.7,3.04573787]
[1760304207759,0.001,4145.8,4145.7,0.6336]
[1760304207963,0.001,4145.8,4145.7,3.04573787]
[1760304208974,0.001,4145.8,4145.7,3.12663787]
[1760304209774,0.001,4145.8,4145.7,3.04573787]
[1760304210432,0.001,4145.8,4145.1,2.41248005]
[1760304210918,0.001,4145.8,4145.5,0.6336]
[1760304211112,0.001,4145.8,4145.5,3.04584598]
[1760304211318,0.001,4145.8,4145.7,3.04573787]
[1760304211692,0.001,4145.8,4145.6,0.6336]
[1760304212097,0.001,4145.8,4145.7,3.04573787]
[1760304213190,0.001,4145.8,4145.7,3.16573787]
[1760304215627,0.001,4145.8,4145.7,3.14573787]
[1760304217640,0.001,4145.8,4145.4,2.41226221]
[1760304217820,0.4456,4145.8,4145.5,3.04584372]
[1760304218032,0.4456,4145.8,4145.4,2.41229958]
[1760304218219,0.4456,4145.8,4145.5,0.6336]
[1760304218552,0.001,4145.8,4145.5,0.6336]
[1760304218852,0.001,4145.8,4145.7,3.04573787]
[1760304219201,0.001,4146.3,4146.2,3.04544699]
[1760304219650,0.001,4146.3,4146.2,3.12534699]
[1760304220407,0.001,4146.3,4146.2,3.04544699]
[1760304223443,0.001,4146.3,4146.2,2.41184699]
[1760304223641,0.001,4146.3,4146.1,2.41188741]
[1760304223845,0.001,4146.3,4146.2,0.6336]
[1760304224444,0.001,4146.3,4146.1,3.04549746]
[1760304224817,0.001,4146.3,4146.0,0.6336]
[1760304225348,0.001,4146.3,4146.2,0.6336]
[1760304225693,0.4736,4146.2,4145.4,2.41231244]
[1760304225851,0.4736,4146.2,4145.7,0.6336]
[1760304226155,0.4736,4146.1,4145.6,2.41217687]
[1760304226354,2.41279721,4146.3,4145.6,2.41217687]
[1760304226562,0.4736,4146.0,4145.4,2.41230938]
[1760304226876,0.4736,4146.0,4145.5,2.41224847]
[1760304227066,0.4736,4145.9,4145.5,2.41224847]
[1760304227451,0.4736,4145.9,4145.8,0.12]
[1760304227845,0.001,4146.3,4145.8,0.12]
[1760304227846,0.001,4146.3,4145.9,0.6336]
[1760304228049,0.001,4146.3,4146.2,0.12]
[1760304228574,0.4746,4146.3,4146.2,0.12]
[1760304228751,4.80638882,4146.3,4146.2,0.12]
[1760304229672,0.4746,4146.3,4145.8,0.12]
[1760304229851,4.56032151,4145.9,4145.8,0.12]
[1760304230175,5.03392151,4145.9,4145.8,0.12]
[1760304232953,2.6219,4145.9,4145.8,0.12]
[1760304233476,5.03392151,4145.9,4145.8,0.12]
[1760304238498,8.168459,4145.5,4145.3,0.002]
[1760304238790,9.50654644,4145.4,4145.3,0.002]
[1760304238960,9.98014644,4145.4,4145.3,0.002]
[1760304239361,4.80591244,4145.4,4145.3,0.002]
[1760304240262,8.13390244,4145.4,4145.3,0.002]
[1760304240564,6.89390244,4145.4,4145.3,0.002]
[1760304240766,4.80591244,4145.4,4145.3,0.002]
[1760304241391,7.29848444,4145.4,4145.3,0.002]
[1760304242097,1.92,4145.4,4145.3,0.002]
[1760304242299,4.80591244,4145.4,4145.3,0.122]
[1760304244704,4.80591244,4145.4,4145.3,0.052]
[1760304244903,2.3936,4145.4,4145.3,0.052]
[1760304246709,1.92,4145.4,4145.3,0.052]
[1760304247094,0.001,4145.9,4145.4,0.6336]
[1760304247407,0.4736,4145.8,4145.4,0.6336]
[1760304248014,2.41231244,4145.4,4145.3,0.052]
[1760304248380,4.80591244,4145.4,4145.3,0.052]
[1760304251109,22.36488244,4145.4,4145.3,0.052]
[1760304252110,22.28082144,4145.4,4145.3,0.052]
[1760304253110,22.26977944,4145.4,4145.3,0.052]
[1760304253976,2.41254523,4145.0,4144.9,0.002]
[1760304254181,15.59902244,4144.9,4144.8,0.002]
[1760304254376,4.443724,4144.6,4143.2,2.41357488]
[1760304254607,2.41319371,4143.9,4143.2,2.41357488]
[1760304254801,4.33325706,4143.8,4143.2,0.6336]
[1760304255122,0.4578,4144.8,4143.2,0.6336]
[1760304255316,0.4578,4144.8,4143.2,3.04719335]
[1760304255621,2.41278948,4144.6,4143.9,3.04678236]
[1760304255796,1.92,4144.7,4143.8,0.6336]
[1760304255995,2.8705939,4144.6,4144.0,3.04672447]
[1760304256197,1.92,4144.5,4144.0,0.6336]
[1760304256397,2.4128382,4144.5,4143.8,3.04682472]
[1760304256613,4.3328382,4144.5,4143.8,3.04682472]
[1760304256819,1.92,4144.5,4144.0,0.6336]
[1760304256999,0.4578,4144.4,4143.8,0.6336]
[1760304257199,0.4578,4144.4,4144.0,0.6336]
[1760304257428,0.4578,4144.3,4144.0,0.6336]
[1760304257589,0.4578,4144.2,4141.8,0.0839]
[1760304257791,2.41320558,4143.9,4143.2,2.4135478]
[1760304257984,2.6073,4143.8,4143.2,2.4135478]
[1760304258416,0.6873,4143.8,4143.3,2.41352895]
[1760304258785,0.2295,4143.8,4143.2,0.6336]
[1760304259117,2.41266594,4144.8,4143.4,0.6336]
[1760304259418,2.41283628,4144.5,4143.7,0.6336]
[1760304259622,1.92,4144.3,4143.7,0.6336]
[1760304259810,0.4578,4144.4,4143.4,0.6336]
[1760304260006,0.4578,4144.4,4143.9,2.41317864]
[1760304260200,4.33278267,4144.6,4143.8,2.41322537]
[1760304260201,0.4578,4144.3,4143.8,2.41322537]
[1760304260397,0.4578,4144.2,4143.8,2.41322537]
[1760304261324,0.2295,4143.9,4141.0,3.68735602]
[1760304261508,0.2295,4143.9,4138.0,0.1593]
[1760304261509,1.92,4143.7,4140.8,0.1593]
[1760304261816,1.92,4143.7,4142.6,0.6336]
[1760304261817,2.41330451,4143.7,4142.6,0.6336]
[1760304262122,2.41357291,4143.3,4142.6,0.6336]
[1760304262289,21.14246528,4143.2,4139.1,0.0809]
[1760304262623,2.4144166,4141.8,4140.1,0.1593]
[1760304262835,2.4144166,4141.8,4140.9,2.41492399]
[1760304263026,0.4578,4141.7,4140.8,0.6336]
[1760304263227,0.4578,4141.7,4140.8,2.41499203]
[1760304263411,0.4578,4141.7,4141.0,2.41482515]
[1760304263615,0.4578,4141.6,4140.9,0.6336]
[1760304263818,2.41452578,4141.6,4135.6,0.966]
[1760304264003,2.71946776,4141.6,4138.7,0.1201]
[1760304264227,4.79232578,4141.6,4140.5,2.41515582]
[1760304264431,30.552566,4141.6,4134.9,1.23035441]
[1760304264766,2.1495,4141.5,4138.1,0.5783]
[1760304264953,2.41503214,4140.8,4138.3,2.41645119]
[1760304265102,2.41511981,4140.6,4139.2,2.41587127]
[1760304265304,1.92,4139.2,4136.4,0.1613]
[1760304265505,0.4578,4139.3,4136.5,0.4582]
[1760304265731,0.4578,4139.3,4138.6,0.6336]
[1760304265944,0.4578,4139.3,4136.5,0.4582]
[1760304265945,15.52277428,4139.5,4135.6,0.1593]
[1760304266114,2.90234626,4141.2,4135.6,0.1593]
[1760304266115,2.41604526,4139.0,4137.5,2.41690977]
[1760304266306,0.4578,4138.9,4136.7,0.4582]
[1760304266500,1.92,4138.8,4136.7,0.4582]
[1760304266700,2.41622561,4138.7,4137.6,2.41683369]
[1760304266950,2.87402561,4138.7,4137.6,2.41683369]
[1760304267155,2.87402561,4138.7,4136.7,0.4582]
[1760304267156,0.4578,4138.7,4136.7,0.4582]
[1760304267308,0.4578,4138.7,4137.4,2.41691932]
[1760304267617,0.4578,4138.7,4136.9,2.41726896]
[1760304267811,0.4578,4138.7,4137.8,2.41673554]
[1760304268011,0.4578,4138.7,4136.7,0.4582]
[1760304268213,2.3778,4138.7,4136.9,2.41726896]
[1760304268414,0.4578,4138.7,4136.8,2.4173274]
[1760304268646,0.4578,4138.7,4136.9,0.4582]
[1760304268814,0.4578,4139.2,4138.3,3.05004028]
[1760304269243,0.4578,4139.2,4138.1,0.6336]
[1760304269542,2.87375658,4139.2,4138.2,3.05010769]
[1760304269743,1.92,4139.0,4136.7,0.4582]
[1760304269959,2.41616799,4138.8,4137.9,0.6336]
[1760304270116,4.33616799,4138.8,4137.9,3.05028214]
[1760304270334,1.92,4138.7,4136.8,0.6336]
[1760304270532,1.92,4138.7,4136.7,0.4582]
[1760304270533,2.41623279,4138.7,4138.0,0.6336]
[1760304270957,0.4578,4138.9,4138.1,0.6336]
[1760304271446,1.92,4138.8,4138.1,0.6336]
[1760304271825,1.92,4138.8,4133.0,1.21813351]
[1760304271826,0.4578,4138.7,4136.2,0.4582]
[1760304272024,2.41652027,4138.2,4136.4,4.33756116]
[1760304272229,0.4578,4138.1,4137.6,2.41684886]
[1760304272481,0.4578,4138.0,4136.6,0.6336]
[1760304272625,0.4578,4138.0,4135.9,2.8760032]
[1760304272626,0.2295,4137.7,4135.9,2.8760032]
[1760304272827,0.2295,4137.7,4137.3,2.41698601]
[1760304273030,0.4578,4137.6,4136.1,0.1613]
[1760304273228,0.4578,4137.6,4137.4,2.41697265]
[1760304273459,2.41620644,4138.8,4136.1,0.1613]
[1760304273662,0.2295,4138.3,4137.6,2.41685375]
[1760304273842,0.2295,4138.3,4137.7,0.6336]
[1760304274040,0.4578,4138.2,4137.6,2.41685972]
[1760304274261,0.4578,4138.2,4137.7,3.05036113]
[1760304274461,0.4578,4138.1,4137.8,2.41673194]
[1760304274633,0.2295,4138.3,4137.8,2.41673194]
[1760304274965,0.2295,4138.7,4138.1,2.41656587]
[1760304275365,0.2295,4138.7,4138.0,2.41662251]
[1760304275663,0.2295,4138.7,4138.1,0.1208]
[1760304275861,0.2295,4138.7,4138.3,0.1208]
[1760304276065,0.4578,4138.6,4138.3,0.1208]
[1760304276363,0.4578,4138.5,4138.3,0.1208]
[1760304276549,0.4578,4138.4,4138.3,0.1208]
[1760304280373,0.4578,4138.4,4138.3,0.1228]
[1760304280663,2.3778,4138.4,4138.3,0.1228]
[1760304282446,4.7941928,4138.4,4138.3,0.002]
[1760304284260,2.3778,4138.4,4138.3,0.002]
[1760304284632,4.7941928,4138.4,4138.3,0.002]
[1760304285368,2.3778,4138.4,4138.3,0.002]
[1760304286259,4.7941928,4138.4,4138.3,0.002]
[1760304286779,4.7941928,4138.4,4138.3,0.052]
[1760304288269,2.41715757,4137.1,4136.3,2.41759438]
[1760304288472,0.4338,4137.0,4135.1,0.1593]
[1760304288676,1.92,4136.9,4135.3,2.41820424]
[1760304289006,2.41748616,4136.6,4135.8,2.4178961]
[1760304289137,2.41747884,4136.6,4135.0,2.41833528]
[1760304289337,4.33732803,4136.8,4134.7,0.5917]
[1760304289338,0.4338,4136.5,4134.8,2.41849666]
[1760304289752,0.4338,4136.5,4136.0,2.41774574]
[1760304289956,0.4338,4136.4,4135.3,2.41816273]
[1760304290160,0.4338,4136.4,4135.6,2.41802416]
[1760304290359,0.4338,4136.3,4134.8,2.41849666]
[1760304290580,0.4338,4136.2,4135.6,0.6336]
[1760304290769,0.2187,4135.7,4135.6,0.5836]
[1760304290965,0.6525,4135.7,4135.6,0.5836]
[1760304291183,0.6525,4135.7,4134.6,2.41856803]
[1760304291388,0.6525,4135.7,4134.4,0.1593]
[1760304291988,0.6525,4135.7,4134.5,2.41867214]
[1760304292176,0.6525,4135.7,4135.4,2.41810499]
[1760304292383,0.2187,4135.7,4134.5,2.41867214]
[1760304292682,0.2187,4135.7,4134.4,0.1593]
[1760304292883,0.2187,4135.7,4135.6,0.6336]
[1760304293095,0.6525,4135.7,4132.6,2.41978415]
[1760304293261,2.41819185,4135.4,4132.9,0.4324]
[1760304293462,0.4338,4135.3,4132.9,0.4324]
[1760304293667,2.4183266,4135.1,4133.9,2.41900245]
[1760304293882,2.3538,4135.0,4134.0,0.6336]
[1760304294047,2.3538,4135.0,4133.1,2.41949142]
[1760304294257,0.4338,4135.0,4134.3,2.41873288]
[1760304294691,0.4338,4135.0,4134.2,2.41884337]
[1760304294990,0.4338,4134.9,4134.3,3.05237919]
[1760304295198,0.4338,4134.8,4133.1,0.4324]
[1760304295355,0.4338,4134.8,4133.3,2.41937434]
[1760304295548,0.4338,4134.7,4133.9,2.41901214]
[1760304295749,0.4338,4134.7,4134.0,2.41896406]
[1760304295966,0.4338,4134.6,4134.1,2.41888923]
[1760304296173,0.2187,4135.7,4132.7,0.4324]
[1760304296174,0.4338,4134.5,4134.2,2.41884231]
[1760304296366,0.4338,4134.4,4134.2,2.41884231]
[1760304296596,0.4338,4134.3,4134.1,2.41889864]
[1760304296900,0.4338,4134.2,4134.1,2.41889864]
[1760304297393,0.4338,4134.2,4134.0,2.53975116]
[1760304297592,0.4338,4134.1,4134.0,0.1208]
[1760304297751,0.4338,4134.1,4132.2,0.968]
[1760304298084,0.4338,4134.0,4133.3,2.41933052]
[1760304298286,0.6525,4133.9,4133.3,2.41933052]
[1760304298797,0.4338,4133.8,4133.4,0.6336]
[1760304298953,0.4338,4133.8,4131.3,2.42050865]
[1760304299150,0.4338,4133.7,4133.1,2.41946903]
[1760304299353,0.4338,4133.6,4131.9,2.42013924]
[1760304299550,1.92,4133.8,4132.4,2.41990126]
[1760304299856,0.6525,4134.3,4134.0,0.6336]
[1760304300055,0.4338,4134.2,4133.9,2.41901875]
[1760304300285,0.4338,4134.1,4133.6,0.002]
[1760304300488,2.41914023,4133.7,4133.6,0.002]
[1760304300796,2.41930685,4133.5,4131.4,2.420487]
[1760304300991,0.4338,4133.4,4131.4,2.420487]
[1760304301332,0.4338,4133.4,4131.3,0.1221]
[1760304301333,0.4338,4133.3,4130.8,0.1221]
[1760304301485,1.92,4133.2,4131.0,2.42070881]
[1760304301691,0.4338,4133.1,4132.5,2.41982188]
[1760304301891,0.2187,4134.3,4130.4,0.1221]
[1760304301892,1.92,4133.8,4131.6,0.6336]
[1760304302135,0.4338,4133.7,4133.4,2.41929819]
[1760304302340,0.4338,4133.6,4133.5,2.41925728]
[1760304302503,0.4338,4134.2,4134.1,2.41890617]
[1760304303790,0.4338,4134.9,4134.8,2.41849666]
[1760304304225,0.4338,4134.9,4134.0,0.6336]
[1760304304425,0.4338,4134.9,4134.1,2.41890617]
[1760304304666,0.4338,4134.9,4134.7,2.41852995]
[1760304304867,0.2197,4135.7,4133.9,0.6336]
[1760304304868,0.4338,4134.8,4133.9,0.6336]
[1760304305162,0.4338,4134.8,4134.6,2.41859767]
[1760304305373,0.4338,4134.7,4134.4,2.41868536]
[1760304305548,2.41825845,4135.3,4134.4,2.41868536]
[1760304305721,0.4338,4134.6,4132.5,0.4324]
[1760304305923,2.85243476,4134.6,4133.0,2.41952369]
[1760304306149,0.4338,4134.5,4133.0,2.41952369]
[1760304306320,0.4338,4134.5,4132.6,1.92]
[1760304306524,0.4338,4134.5,4134.2,2.41884294]
[1760304306721,0.4338,4134.5,4133.4,2.41929327]
[1760304306927,0.4338,4135.0,4133.8,0.6336]
[1760304307147,0.4338,4135.4,4134.0,0.6336]
[1760304307348,0.4338,4135.4,4135.2,2.41820684]
[1760304307524,0.001,4135.7,4134.5,2.41867214]
[1760304307720,0.001,4135.7,4134.6,0.4324]
[1760304307955,0.001,4135.7,4135.6,3.17242882]
[1760304308158,1e-08,4135.8,4135.7,3.05157035]
[1760304308363,1e-08,4135.8,4135.7,3.48397035]
[1760304308925,1e-08,4135.8,4135.7,3.05157035]
[1760304309658,1e-08,4135.8,4135.7,3.49767035]
[1760304310154,1e-08,4135.8,4135.7,3.05157035]
[1760304310561,1e-08,4135.8,4135.7,3.49767035]
[1760304311456,1e-08,4135.8,4135.7,3.05157035]
[1760304312664,1e-08,4135.8,4135.7,3.49767035]
[1760304313464,0.001,4136.2,4136.1,4.97133651]
[1760304313763,0.4694,4138.6,4136.3,0.6336]
[1760304314062,0.2189,4139.1,4138.5,2.41630332]
[1760304314063,0.6883,4139.1,4138.5,2.41630332]
[1760304314262,0.4694,4139.0,4136.8,0.4461]
[1760304314452,2.88548248,4139.0,4138.0,2.41657838]
[1760304314624,2.41617317,4138.8,4137.6,2.41680702]
[1760304314828,2.63489042,4139.1,4137.6,2.41680702]
[1760304314829,0.4694,4138.7,4137.9,2.41668222]
[1760304315056,0.4694,4138.7,4137.1,3.05074516]
[1760304315057,0.4694,4138.7,4138.0,2.41661785]
[1760304315361,0.4694,4138.7,4137.3,1.0797]
[1760304315535,0.4694,4138.7,4138.4,2.4163639]
[1760304315732,2.63490265,4139.1,4138.1,2.41652721]
[1760304316071,0.4694,4139.0,4138.4,2.4163369]
[1760304316232,0.4694,4139.0,4137.4,2.41697684]
[1760304316430,0.4694,4139.0,4138.5,2.41631704]
[1760304316833,0.4694,4139.0,4138.8,2.41614819]
[1760304317260,0.15749895,4139.3,4137.6,0.6336]
[1760304317438,0.15749895,4139.3,4137.7,2.4168016]
[1760304317642,0.15749895,4139.3,4139.0,2.41599118]
[1760304317838,0.4694,4139.2,4138.0,0.6336]
[1760304318079,1.92,4138.9,4135.8,0.4461]
[1760304318233,2.41627603,4138.6,4135.8,2.8639733]
[1760304318435,0.4694,4138.5,4136.2,0.4461]
[1760304318633,0.4694,4138.5,4137.4,2.41695453]
[1760304318828,0.4694,4138.5,4138.0,2.41657052]
[1760304319065,0.001,4138.7,4138.2,0.1208]
[1760304319267,1.92,4138.3,4138.2,0.1208]
[1760304319469,2.88589958,4138.3,4137.7,0.1208]
[1760304319664,2.4165103,4138.2,4137.7,0.1208]
[1760304320145,0.4694,4138.1,4137.7,0.1208]
[1760304320343,0.4694,4138.0,4137.7,0.1208]
[1760304320744,0.4694,4137.9,4137.7,0.1208]
[1760304321143,0.4694,4137.8,4137.7,0.1208]
[1760304324798,0.4694,4139.5,4137.8,0.6336]
[1760304325086,2.3894,4139.5,4138.6,2.41627603]
[1760304325383,0.4694,4139.5,4138.6,3.04987603]
[1760304325548,2.6345835,4139.7,4138.6,3.04987603]
[1760304325749,0.4704,4138.7,4136.2,2.41767806]
[1760304326053,1.92,4138.3,4136.4,2.41752392]
[1760304326256,2.41699046,4137.4,4136.4,2.4175175]
[1760304326465,0.4694,4137.5,4136.2,0.1613]
[1760304326678,2.88632085,4137.5,4136.5,2.4174956]
[1760304326878,0.4694,4137.5,4136.6,3.05103411]
[1760304327183,1.92,4137.3,4135.2,0.4461]
[1760304327383,1.92,4137.1,4134.8,0.4481]
[1760304327586,2.41755284,4136.5,4135.6,2.41798159]
[1760304327752,2.88699868,4136.4,4135.4,2.41813778]
[1760304327953,2.88699868,4136.4,4135.5,2.41803623]
[1760304328150,1.92,4136.3,4135.3,2.41820138]
[1760304328377,1.92,4136.2,4134.8,0.4481]
[1760304328698,1.92,4136.3,4135.6,2.41801181]
[1760304329195,0.4694,4136.4,4135.7,2.41796159]
[1760304329352,1.92,4136.3,4135.6,2.41801619]
[1760304329552,2.41765984,4136.3,4135.5,0.6336]
[1760304329752,1.92,4136.2,4135.5,0.6336]
[1760304329977,1.92,4136.3,4134.9,0.6336]
[1760304330377,2.41768177,4136.2,4135.4,3.05172776]
[1760304330752,2.41774789,4136.1,4135.3,3.05177838]
[1760304330952,2.41763068,4136.3,4135.6,0.6336]
[1760304331175,2.4176853,4136.2,4135.6,0.6336]
[1760304331764,0.2189,4135.7,4134.8,0.002]
[1760304332082,2.6368767,4135.7,4134.9,2.4184286]
[1760304332262,2.88747539,4135.6,4134.8,0.002]
[1760304332458,2.41810693,4135.5,4134.8,0.002]
[1760304332658,2.41822575,4135.3,4134.8,0.002]
[1760304333048,0.4694,4135.2,4134.8,0.002]
[1760304333383,4.3383212,4135.1,4134.8,0.002]
[1760304333566,2.41843817,4134.9,4134.8,0.002]
[1760304333951,2.88783817,4134.9,4134.5,0.9679]
[1760304334182,2.88783817,4134.9,4134.2,2.41883209]
[1760304334378,2.88783817,4134.9,4133.3,2.41932977]
[1760304334379,0.4694,4134.8,4132.2,0.968]
[1760304334751,0.1208,4134.3,4133.6,0.1208]
[1760304334950,2.63804023,4133.7,4133.6,0.1208]
[1760304335153,0.6883,4133.7,4132.2,0.968]
[1760304335377,4.80861339,4133.6,4132.2,0.968]
[1760304335678,2.41932925,4133.4,4132.4,2.41989341]
[1760304335901,0.4694,4133.3,4132.5,2.41983489]
[1760304336091,0.2189,4133.7,4131.5,0.1211]
[1760304336294,2.41957145,4133.0,4131.4,2.420487]
[1760304336501,2.41957145,4133.0,4131.1,0.1211]
[1760304336502,2.3894,4132.9,4131.1,0.1211]
[1760304336658,2.41972208,4132.8,4131.9,2.42017686]
[1760304336999,2.41972208,4132.8,4131.7,2.42030174]
[1760304337000,0.4694,4132.7,4131.1,0.1211]
[1760304337164,0.4694,4132.7,4130.7,0.4461]
[1760304337366,1.92,4132.6,4130.6,0.1211]
[1760304337569,0.4694,4132.5,4130.7,2.42089718]
[1760304337798,0.4694,4132.4,4131.6,2.42036176]
[1760304337997,0.4694,4132.3,4131.6,2.42036176]
[1760304338294,2.8893749,4132.3,4130.7,2.42089718]
[1760304338596,0.4694,4132.2,4131.4,2.42047466]
[1760304338972,0.4694,4132.1,4131.4,2.42048447]
[1760304339209,0.4694,4132.1,4130.4,0.6336]
[1760304339491,0.4694,4132.1,4130.1,0.968]
[1760304339492,0.2189,4131.5,4131.2,2.42060135]
[1760304339690,0.2189,4131.5,4130.1,0.968]
[1760304339891,0.4645,4131.4,4130.7,2.42084241]
[1760304340091,0.2189,4131.5,4130.1,0.968]
[1760304340092,0.4645,4131.3,4130.1,0.968]
[1760304340275,0.2189,4131.5,4130.1,0.968]
[1760304340276,0.4645,4131.2,4130.1,0.968]
[1760304340472,0.4645,4131.1,4130.6,2.4209415]
[1760304340696,0.4645,4131.1,4130.1,0.968]
[1760304341062,0.4645,4131.1,4130.5,2.4209735]
[1760304341264,0.4645,4131.1,4130.2,0.6336]
[1760304341686,0.4645,4131.1,4130.9,2.4207784]
[1760304341994,0.4645,4131.0,4130.9,2.4207784]
[1760304343172,0.4645,4131.0,4129.5,0.6336]
[1760304343367,0.4645,4131.0,4130.8,2.42082994]
[1760304343567,0.4645,4130.9,4130.8,2.42082994]
[1760304344263,0.2189,4131.5,4130.0,0.6336]
[1760304344458,0.7095,4131.8,4131.5,2.42042644]
[1760304344762,0.7095,4131.8,4127.6,0.4391]
[1760304344763,2.263994,4131.2,4127.6,0.4391]
[1760304344961,1.92,4131.0,4128.6,0.1613]
[1760304345169,0.1208,4130.5,4129.8,0.1208]
[1760304345381,0.4737,4130.4,4129.8,0.1208]
[1760304345569,0.2358,4129.9,4129.5,0.1208]
[1760304345773,0.2358,4129.9,4126.6,0.1593]
[1760304345774,0.4737,4129.8,4126.6,0.1593]
[1760304346006,1.92,4129.7,4127.1,2.42300889]
[1760304346161,0.4737,4129.6,4128.8,2.42200587]
[1760304346363,0.4737,4129.6,4128.5,2.42214955]
[1760304346608,0.4737,4129.6,4128.5,2.42213028]
[1760304346767,0.4737,4129.5,4127.7,2.42265668]
[1760304346968,0.4737,4129.4,4127.6,0.4391]
[1760304347308,0.4737,4129.4,4127.5,0.4391]
[1760304347862,0.4737,4129.4,4128.7,2.42201878]
[1760304348263,2.42160469,4129.5,4128.5,2.4221298]
[1760304348494,0.4737,4129.3,4126.1,0.4391]
[1760304348698,15.62777745,4128.6,4125.9,0.969]
[1760304348916,1.92,4128.4,4125.9,3.3926657]
[1760304349130,15.62777745,4127.1,4124.2,0.969]
[1760304349344,15.62777745,4127.1,4125.6,2.42383659]
[1760304349345,2.245034,4126.9,4125.6,2.42383659]
[1760304349500,2.6295,4127.0,4124.2,0.969]
[1760304349501,2.3937,4126.8,4124.2,0.969]
[1760304349698,1.92,4126.2,4124.2,0.9671]
[1760304349914,0.4737,4126.1,4124.2,3.39176648]
[1760304350117,0.4737,4126.1,4124.2,0.9671]
[1760304350284,1.92,4126.4,4124.4,2.42459509]
[1760304350488,0.4737,4126.6,4124.5,0.4391]
[1760304350687,0.81777922,4128.8,4124.5,0.4391]
[1760304350688,0.4737,4127.2,4124.5,0.4391]
[1760304350935,0.7095,4127.9,4124.6,1.92]
[1760304351116,0.18417922,4128.8,4126.0,0.6336]
[1760304351315,0.18417922,4128.8,4126.7,0.6336]
[1760304351514,0.18417922,4128.8,4126.8,0.4391]
[1760304351828,0.18417922,4128.8,4126.9,0.6336]
[1760304352120,15.62777745,4127.9,4124.4,2.42459509]
[1760304352307,15.62777745,4127.9,4126.3,2.42342512]
[1760304352308,0.2358,4127.0,4126.3,2.42342512]
[1760304352617,0.4737,4127.1,4126.7,2.42323912]
[1760304352821,0.4737,4127.1,4125.4,0.4391]
[1760304353007,0.4737,4127.0,4124.9,0.4391]
[1760304353527,0.4737,4127.0,4124.4,2.42459509]
[1760304353689,0.4737,4126.9,4124.9,2.4242527]
[1760304353891,0.4737,4126.9,4126.1,2.42355238]
[1760304354091,0.4737,4126.9,4125.5,0.6336]
[1760304354298,0.4737,4127.4,4126.7,2.37322267]
[1760304354499,0.4737,4127.4,4126.5,2.4233156]
[1760304354706,0.4737,4127.3,4124.4,0.4391]
[1760304354905,0.4737,4127.3,4126.5,2.42331533]
[1760304355235,0.4737,4127.2,4125.4,0.6336]
[1760304355407,0.4737,4127.2,4126.6,2.4232658]
[1760304355606,0.4737,4127.2,4126.3,2.42342414]
[1760304355804,2.65959429,4127.5,4126.4,0.1208]
[1760304355805,0.5945,4127.1,4126.4,0.1208]
[1760304356005,0.1208,4126.6,4125.9,0.1208]
[1760304356204,0.4737,4127.1,4125.4,0.6336]
[1760304356498,0.4737,4127.1,4126.0,0.6336]
[1760304356717,0.4737,4127.1,4125.6,0.6336]
[1760304356950,0.2368,4127.5,4127.4,2.42283277]
[1760304357151,0.001,4127.5,4127.4,2.42283277]
[1760304357657,0.001,4127.5,4127.4,3.05643277]
[1760304358061,0.7095,4129.9,4129.5,2.42154496]